bitfinex/quotes_SOLUSD_20250829
["timestamp","ask_amount","ask_price","bid_price","bid_amount"]
[1756438622196,0.06,216.17,216.14,4.24671756]
[1756438622401,0.06,216.17,216.14,40.44671756]
[1756438622714,0.77,216.15,216.14,40.44671756]
[1756438623417,0.77,216.15,216.14,48.44671756]
[1756438623999,5.53857841,216.15,216.14,8.0]
[1756438624324,5.53857841,216.15,216.14,36.2]
[1756438624696,0.14216157,216.14,216.1,4.24671756]
[1756438625024,0.14216157,216.12,216.11,36.2]
[1756438625325,5.47922061,216.12,216.11,36.2]
[1756438625798,0.85216157,216.12,216.11,36.2]
[1756438625995,0.71,216.14,216.11,40.44671756]
[1756438626196,0.85216157,216.13,216.06,79.0]
[1756438626400,0.14216157,216.11,216.09,4.24671756]
[1756438626611,0.14216157,216.11,216.1,36.2]
[1756438627414,0.85216157,216.11,216.1,36.2]
[1756438627807,5.47943471,216.11,216.1,36.2]
[1756438628632,5.47943471,216.11,216.06,4.24671756]
[1756438628959,0.14216157,216.09,216.07,36.2]
[1756438629143,0.71,216.08,216.07,36.2]
[1756438629342,5.33791558,216.08,216.07,36.2]
[1756438629535,5.48007715,216.08,216.07,36.2]
[1756438629750,9.72679471,216.08,216.07,36.2]
[1756438629951,5.48007715,216.08,216.07,36.2]
[1756438630152,9.72679471,216.08,216.07,36.2]
[1756438631034,5.48007715,216.08,216.07,36.2]
[1756438631935,0.14216157,216.07,216.0,79.0]
[1756438632138,0.14216157,216.04,216.01,36.2]
[1756438632337,0.71,216.03,216.01,36.2]
[1756438632644,0.85216157,216.02,216.01,36.2]
[1756438633955,5.48136256,216.02,216.01,36.2]
[1756438635172,0.14216157,216.01,215.99,0.03]
[1756438635345,5.09887913,216.0,215.99,0.03]
[1756438635537,9.72850875,216.0,215.99,0.03]
[1756438637057,5.48179119,216.0,215.99,0.03]
[1756438637259,9.72850875,216.0,215.99,0.03]
[1756438640664,5.09887913,216.0,215.99,0.03]
[1756438641249,0.85216157,216.0,215.99,0.03]
[1756438644856,5.09887913,216.0,215.99,0.03]
[1756438645578,0.77,216.12,216.03,0.28432314]
[1756438645766,0.71,216.1,216.05,4.24671756]
[1756438645967,0.71,216.09,216.05,4.24671756]
[1756438646366,0.71,216.09,216.06,4.62834397]
[1756438646688,0.77,216.12,216.08,4.24671756]
[1756438646892,0.71,216.11,216.07,36.2]
[1756438647049,0.06,216.12,216.09,4.24671756]
[1756438647254,0.06,216.12,216.1,4.24671756]
[1756438647704,0.06,216.12,216.09,4.24671756]
[1756438647884,0.06,216.12,216.1,36.2]
[1756438649785,0.06,216.12,216.1,40.44671756]
[1756438650976,0.86216157,216.11,216.1,36.2]
[1756438651181,0.14216157,216.11,216.1,36.2]
[1756438654881,0.14216157,216.11,216.1,36.23]
[1756438655583,0.14216157,216.11,216.1,40.47671756]
[1756438655784,0.06,216.12,216.1,124.40420483]
[1756438655983,0.06,216.12,216.11,4.8310407]
[1756438656387,0.06,216.12,216.11,12.8310407]
[1756438656891,0.06,216.12,216.11,17.45831384]
[1756438657188,0.06,216.12,216.11,110.05390785]
[1756438658993,0.06,216.15,216.14,39.87991715]
[1756438659196,0.1,216.18,216.15,0.28432314]
[1756438659381,0.1,216.18,216.17,13.87991715]
[1756438659584,0.06,216.19,216.17,18.32663471]
[1756438659783,0.1,216.21,216.2,39.87991715]
[1756438659988,0.72,216.31,216.24,4.5310407]
[1756438660188,0.72,216.31,216.24,40.7510407]
[1756438660500,0.72,216.31,216.24,80.48663471]
[1756438660678,0.14216157,216.32,216.24,80.48663471]
[1756438660870,4.24671756,216.35,216.24,80.34663471]
[1756438661073,0.72,216.3,216.24,84.97112601]
[1756438662100,0.72,216.3,216.24,92.97112601]
[1756438663200,0.14216157,216.32,216.24,93.11112601]
[1756438664001,0.72,216.33,216.24,97.35784357]
[1756438665202,0.72,216.29,216.27,0.28432314]
[1756438665405,0.72,216.29,216.28,40.7110407]
[1756438665989,0.72,216.31,216.28,40.7110407]
[1756438666304,0.72,216.3,216.29,4.24671756]
[1756438666506,0.72,216.3,216.29,36.2]
[1756438667599,0.72,216.3,216.24,26.0]
[1756438667600,0.14216157,216.29,216.26,4.24671756]
[1756438667800,0.86216157,216.28,216.27,36.2]
[1756438668589,0.86216157,216.28,216.24,86.9]
[1756438668590,0.14216157,216.27,216.24,8.0]
[1756438668792,0.14216157,216.25,216.17,4.622966]
[1756438669004,0.14216157,216.25,216.22,4.24671756]
[1756438669196,4.24671756,216.27,216.23,36.22]
[1756438669197,0.86216157,216.24,216.23,36.22]
[1756438670118,0.86216157,216.24,216.22,4.24671756]
[1756438670309,0.14216157,216.24,216.23,36.22]
[1756438670512,0.14216157,216.24,216.22,4.24671756]
[1756438670818,4.76665287,216.24,216.23,36.22]
[1756438671392,5.48665287,216.24,216.23,36.22]
[1756438672239,24.24671756,216.37,216.23,36.22]
[1756438672240,0.1,216.34,216.24,13.59559401]
[1756438672440,0.1,216.34,216.29,26.28432314]
[1756438672590,0.1,216.34,216.33,4.5310407]
[1756438672789,0.1,216.34,216.33,57.96663471]
[1756438673010,0.72,216.46,216.37,26.0]
[1756438673208,0.72,216.46,216.43,4.24671756]
[1756438673415,0.72,216.46,216.44,40.14]
[1756438673726,0.72,216.46,216.44,44.38671756]
[1756438673892,0.1,216.47,216.45,4.24671756]
[1756438674110,0.1,216.47,216.46,40.24]
[1756438674323,0.1,216.47,216.46,44.48671756]
[1756438674616,0.82,216.47,216.46,40.24]
[1756438675123,0.1,216.47,216.46,40.24]
[1756438675444,0.1,216.47,216.46,54.90712767]
[1756438675618,0.1,216.47,216.46,68.78704482]
[1756438675813,0.1,216.47,216.46,73.406836]
[1756438676233,0.1,216.47,216.46,69.08704482]
[1756438676720,23.86270601,216.72,216.5,13.59559401]
[1756438676926,0.72,216.62,216.61,6.66712767]
[1756438677119,0.72,216.62,216.61,47.30712767]
[1756438677323,0.72,216.62,216.61,40.64]
[1756438678832,20.0,216.76,216.61,47.30712767]
[1756438679044,0.72,216.67,216.65,6.66712767]
[1756438679252,0.72,216.66,216.65,6.66712767]
[1756438679547,0.14216157,216.65,216.64,40.56]
[1756438679717,0.86216157,216.65,216.63,47.20712767]
[1756438679916,0.86216157,216.64,216.63,47.20712767]
[1756438680144,5.33533355,216.67,216.63,6.66712767]
[1756438680455,16.1416778,216.83,216.69,26.0]
[1756438680629,11.27903561,216.83,216.7,41.04432314]
[1756438680834,6.66712767,216.81,216.75,6.66712767]
[1756438681055,0.67,216.82,216.77,6.66712767]
[1756438681223,0.67,216.81,216.78,41.14]
[1756438681421,0.67,216.8,216.78,41.14]
[1756438681725,0.67,216.79,216.75,6.66712767]
[1756438681948,0.67,216.78,216.76,47.86712767]
[1756438682111,26.0,216.82,216.76,41.2]
[1756438682312,0.67,216.81,216.76,47.86712767]
[1756438682651,0.67,216.8,216.77,6.66712767]
[1756438682818,0.14216157,216.78,216.76,41.2]
[1756438683022,0.67,216.78,216.76,47.86712767]
[1756438683221,0.67,216.77,216.72,14.15234614]
[1756438683425,42.14242228,216.82,216.74,6.66712767]
[1756438683426,0.67,216.76,216.74,6.66712767]
[1756438683623,0.67,216.75,216.74,6.66712767]
[1756438683819,0.14216157,216.74,216.73,6.66712767]
[1756438684057,0.14216157,216.74,216.72,6.66712767]
[1756438684242,4.61361014,216.75,216.73,6.66712767]
[1756438684430,4.75577171,216.75,216.74,6.66712767]
[1756438684742,4.61361014,216.75,216.74,6.66712767]
[1756438684924,4.75577171,216.75,216.74,6.66712767]
[1756438685120,4.61361014,216.75,216.74,6.66712767]
[1756438685347,0.14216157,216.77,216.74,6.66712767]
[1756438685549,0.14216157,216.77,216.71,0.28432314]
[1756438685740,0.14216157,216.75,216.72,6.66712767]
[1756438685925,4.61382301,216.74,216.72,6.66712767]
[1756438686121,4.61382301,216.74,216.72,41.38]
[1756438686339,4.61382301,216.74,216.72,48.06712767]
[1756438686547,4.61382301,216.74,216.73,6.66712767]
[1756438687631,0.67,216.74,216.69,11.675608]
[1756438687850,0.14216157,216.72,216.68,6.66712767]
[1756438688023,0.67,216.71,216.65,11.675608]
[1756438688224,32.66712767,216.68,216.46,24.70674082]
[1756438688418,26.14216157,216.66,216.58,6.66712767]
[1756438688854,0.14216157,216.64,216.56,41.52]
[1756438689157,0.14216157,216.67,216.58,20.54348867]
[1756438689347,0.14216157,216.67,216.59,0.28432314]
[1756438689521,0.14216157,216.67,216.63,6.66712767]
[1756438689727,0.14216157,216.65,216.62,48.38712767]
[1756438689927,0.67,216.69,216.64,6.66712767]
[1756438690247,0.67,216.69,216.63,0.28432314]
[1756438690445,0.67,216.69,216.65,6.66712767]
[1756438690635,0.67,216.69,216.66,6.66712767]
[1756438690828,0.67,216.69,216.63,0.28432314]
[1756438691143,0.14216157,216.68,216.62,41.72]
[1756438691350,0.14216157,216.68,216.64,6.66712767]
[1756438691946,0.14216157,216.69,216.66,6.66712767]
[1756438692130,0.14216157,216.69,216.62,42.00432314]
[1756438692447,0.14216157,216.69,216.68,6.66712767]
[1756438692822,0.14216157,216.69,216.67,6.66712767]
[1756438693752,4.75720539,216.69,216.66,41.84]
[1756438693931,4.75720539,216.69,216.62,0.28432314]
[1756438693932,0.67,216.68,216.65,48.56712767]
[1756438694134,0.14216157,216.66,216.63,6.66712767]
[1756438694328,0.14216157,216.64,216.59,0.14216157]
[1756438694526,0.14216157,216.62,216.58,8.0]
[1756438694746,0.67,216.61,216.58,48.56712767]
[1756438694943,0.67,216.66,216.6,6.66712767]
[1756438695250,0.14216157,216.65,216.62,6.66712767]
[1756438695550,37.28217149,216.69,216.63,6.66712767]
[1756438695852,0.14216157,216.68,216.63,6.66712767]
[1756438696048,0.14216157,216.66,216.62,6.66712767]
[1756438696433,0.14216157,216.66,216.61,6.66712767]
[1756438696742,0.14216157,216.64,216.61,42.06]
[1756438697142,0.14216157,216.64,216.6,48.88928924]
[1756438697344,0.14216157,216.64,216.6,48.74712767]
[1756438697655,16.15359763,216.67,216.6,48.74712767]
[1756438697656,0.14216157,216.62,216.6,42.06]
[1756438698152,4.61659203,216.61,216.58,6.66712767]
[1756438698360,4.61659203,216.61,216.59,6.66712767]
[1756438698829,0.14216157,216.62,216.59,6.66712767]
[1756438699035,0.14216157,216.62,216.6,6.66712767]
[1756438699237,4.61552663,216.66,216.61,6.66712767]
[1756438699439,4.61552663,216.66,216.63,6.66712767]
[1756438699652,5.28552663,216.66,216.61,6.66712767]
[1756438699837,5.28552663,216.66,216.6,0.28432314]
[1756438699838,0.81216157,216.65,216.6,0.28432314]
[1756438700153,4.61595273,216.64,216.62,6.66712767]
[1756438700356,4.61595273,216.64,216.61,6.66712767]
[1756438700747,0.14216157,216.63,216.6,42.1]
[1756438700949,0.14216157,216.63,216.6,48.76712767]
[1756438701340,0.14216157,216.63,216.61,6.66712767]
[1756438701543,0.14216157,216.63,216.6,48.76712767]
[1756438701950,0.14216157,216.61,216.59,42.06]
[1756438702264,4.75885056,216.61,216.59,42.06]
[1756438702468,5.42885056,216.61,216.59,42.06]
[1756438703067,4.75885056,216.61,216.59,42.06]
[1756438703249,0.67,216.64,216.59,42.06]
[1756438703436,0.67,216.64,216.6,6.66712767]
[1756438703641,0.14216157,216.66,216.62,6.66712767]
[1756438703841,4.61531361,216.67,216.6,0.28432314]
[1756438704045,4.61531361,216.67,216.63,6.66712767]
[1756438704253,0.67,216.71,216.64,0.28432314]
[1756438704673,0.67,216.71,216.66,6.66712767]
[1756438704865,11.28137647,216.72,216.66,6.66712767]
[1756438705051,0.14216157,216.69,216.64,6.95145081]
[1756438705247,0.81216157,216.69,216.64,0.28432314]
[1756438705563,0.67,216.68,216.64,8.28432314]
[1756438705766,4.6142488,216.72,216.63,48.84712767]
[1756438705767,6.80928924,216.66,216.63,42.18]
[1756438706086,0.67,216.65,216.63,42.18]
[1756438706573,0.14216157,216.66,216.63,42.18]
[1756438706784,0.14216157,216.66,216.63,48.84712767]
[1756438706959,0.14216157,216.68,216.64,6.95145081]
[1756438707151,0.14216157,216.68,216.65,6.66712767]
[1756438707353,0.14216157,216.68,216.64,6.95145081]
[1756438707559,0.14216157,216.68,216.64,0.28432314]
[1756438708471,4.75741436,216.68,216.64,0.28432314]
[1756438708857,4.75741436,216.68,216.64,8.28432314]
[1756438709054,0.14216157,216.66,216.59,6.66712767]
[1756438709268,7.47928924,216.66,216.6,42.08]
[1756438709462,0.14216157,216.66,216.61,0.28432314]
[1756438709881,6.66712767,216.67,216.66,1.67507743]
[1756438710076,7.33712767,216.67,216.66,1.67507743]
[1756438710469,11.95244128,216.67,216.66,1.67507743]
[1756438711788,12.09460285,216.67,216.66,1.67507743]
[1756438712676,4.75747518,216.67,216.66,1.67507743]
[1756438712981,0.06,216.68,216.67,13.87991715]
[1756438713286,0.06,216.68,216.67,20.54704482]
[1756438713988,0.06,216.68,216.67,21.00857618]
[1756438714297,0.06,216.71,216.7,39.87991715]
[1756438714580,0.06,216.71,216.7,58.29031461]
[1756438715293,0.06,216.82,216.78,26.0]
[1756438715584,0.06,216.82,216.81,39.87991715]
[1756438715879,0.06,216.82,216.81,54.54704482]
[1756438716672,0.06,216.82,216.81,82.63145081]
[1756438717587,0.06,216.82,216.81,96.22704482]
[1756438717785,0.06,216.82,216.81,100.8375244]
[1756438718362,0.06,216.82,216.81,97.44985777]
[1756438719189,0.06,216.82,216.81,44.49039673]
[1756438719373,0.06,216.82,216.81,92.6975244]
[1756438719778,0.06,216.82,216.81,97.30985777]
[1756438720180,0.06,216.82,216.81,92.6775244]
[1756438720869,0.06,216.82,216.81,86.01039673]
[1756438721079,0.06,216.82,216.81,67.44]
[1756438721282,0.06,216.82,216.81,74.10712767]
[1756438721477,0.06,216.82,216.81,82.24928924]
[1756438721679,0.06,216.82,216.81,56.24928924]
[1756438721990,0.06,216.82,216.81,61.00378418]
[1756438723289,0.06,216.82,216.81,49.72432314]
[1756438723486,0.06,216.82,216.81,56.39145081]
[1756438723991,0.06,216.82,216.81,74.59937819]
[1756438724295,0.06,216.82,216.81,56.39145081]
[1756438724504,0.06,216.82,216.81,86.85855471]
[1756438724875,0.06,216.82,216.81,82.23145081]
[1756438725071,0.06,216.82,216.81,86.84378418]
[1756438725595,0.06,216.82,216.81,82.23145081]
[1756438725772,0.06,216.82,216.81,86.84378418]
[1756438726207,0.06,216.82,216.81,100.43937819]
[1756438726996,0.06,216.82,216.81,79.00783517]
[1756438727488,0.06,216.82,216.81,71.00783517]
[1756438730608,0.06,216.82,216.81,79.00783517]
[1756438731093,0.06,216.82,216.81,78.68783517]
[1756438731623,0.06,216.82,216.81,78.64783517]
[1756438732190,0.06,216.82,216.81,37.72783517]
[1756438732416,0.06,216.82,216.81,78.62783517]
[1756438733004,0.06,216.82,216.81,78.58783517]
[1756438733191,0.06,216.82,216.81,71.9207075]
[1756438733394,0.06,216.82,216.81,78.58783517]
[1756438733812,0.06,216.82,216.81,45.51990779]
[1756438734013,0.06,216.82,216.81,56.97224116]
[1756438734825,0.06,216.82,216.81,52.35990779]
[1756438735025,0.72,216.82,216.81,37.23558465]
[1756438735228,0.72,216.82,216.81,77.99558465]
[1756438735413,0.72,216.82,216.81,66.76]
[1756438735611,0.72,216.82,216.8,6.66712767]
[1756438735810,0.66,216.81,216.78,6.66712767]
[1756438736025,0.66,216.8,216.79,40.7]
[1756438737140,0.66,216.8,216.79,55.36712767]
[1756438737736,0.66,216.8,216.79,40.7]
[1756438737916,5.27254612,216.8,216.79,40.7]
[1756438738607,0.14216157,216.79,216.77,40.58]
[1756438738935,0.14216157,216.79,216.67,33.28]
[1756438738936,0.66,216.78,216.76,40.58]
[1756438739115,16.286073,216.8,216.76,40.58]
[1756438739116,0.80216157,216.77,216.76,40.58]
[1756438739318,5.41534605,216.77,216.76,40.58]
[1756438740337,0.66,216.77,216.76,40.58]
[1756438740942,5.27318448,216.77,216.76,40.58]
[1756438741137,5.41534605,216.77,216.76,40.58]
[1756438741346,4.61361014,216.75,216.7,6.66712767]
[1756438741667,0.66,216.74,216.71,40.48]
[1756438741965,0.66,216.73,216.71,47.14712767]
[1756438742144,0.66,216.73,216.71,126.14712767]
[1756438742468,0.66,216.73,216.71,119.48]
[1756438743044,0.66,216.72,216.71,119.48]
[1756438744179,0.14216157,216.77,216.71,134.14712767]
[1756438744464,0.66,216.76,216.72,6.66712767]
[1756438744667,0.66,216.75,216.73,47.02712767]
[1756438744834,0.66,216.74,216.73,40.36]
[1756438746144,5.27382301,216.74,216.73,40.36]
[1756438746938,0.66,216.74,216.73,40.36]
[1756438750147,0.66,216.77,216.73,47.02712767]
[1756438750350,6.66712767,216.8,216.73,40.36]
[1756438750578,0.66,216.8,216.75,6.66712767]
[1756438750870,0.72,216.82,216.77,6.66712767]
[1756438751046,0.66,216.81,216.78,40.12]
[1756438751646,4.67215421,216.82,216.78,40.12]
[1756438751847,0.66,216.81,216.78,119.12]
[1756438752048,0.20216157,216.82,216.78,119.12]
[1756438752270,0.66,216.81,216.78,119.12]
[1756438752466,0.66,216.81,216.78,79.0]
[1756438752654,0.80216157,216.8,216.76,79.0]
[1756438752976,0.14216157,216.78,216.77,40.02]
[1756438753178,0.80216157,216.78,216.77,40.02]
[1756438753382,0.66,216.8,216.77,40.02]
[1756438753578,0.06,216.82,216.78,6.66712767]
[1756438753760,0.06,216.82,216.79,40.0]
[1756438753957,0.06,216.82,216.81,6.66712767]
[1756438754151,0.06,216.82,216.81,39.98]
[1756438755876,0.06,216.82,216.81,46.93145081]
[1756438756078,0.06,216.82,216.81,51.54378418]
[1756438756681,0.06,216.82,216.81,46.93145081]
[1756438756884,0.06,216.82,216.81,54.93145081]
[1756438757685,0.06,216.82,216.81,60.25378418]
[1756438759178,7.32712767,216.92,216.83,0.28432314]
[1756438759179,0.66,216.92,216.83,0.28432314]
[1756438759375,0.66,216.92,216.89,6.66712767]
[1756438759574,6.66712767,216.94,216.9,39.76]
[1756438759774,0.66,216.92,216.9,39.76]
[1756438760002,0.66,216.91,216.9,39.76]
[1756438760793,0.14216157,216.92,216.9,39.76]
[1756438761106,0.66,216.91,216.9,39.76]
[1756438762470,0.80216157,216.93,216.9,39.76]
[1756438762669,0.66,216.92,216.9,39.76]
[1756438763092,0.14216157,216.93,216.9,39.76]
[1756438763308,0.66,216.93,216.9,46.42712767]
[1756438765902,0.66,216.93,216.9,39.76]
[1756438767126,0.66,216.92,216.9,39.76]
[1756438767296,0.66,216.91,216.9,39.76]
[1756438767816,0.06,216.93,216.9,39.76]
[1756438768021,0.66,216.92,216.9,39.76]
[1756438769317,0.66,216.92,216.9,46.42712767]
[1756438769531,0.06,216.93,216.9,46.42712767]
[1756438769701,11.93712213,216.92,216.88,0.28432314]
[1756438770016,11.93712213,216.92,216.87,78.94]
[1756438770017,6.66712767,216.9,216.87,39.4]
[1756438770190,0.66,216.89,216.87,39.4]
[1756438771101,6.80928924,216.91,216.87,39.4]
[1756438771410,0.72,216.9,216.87,39.4]
[1756438771714,5.33059074,216.9,216.87,39.4]
[1756438772110,0.72,216.89,216.87,39.4]
[1756438772691,5.33065478,216.89,216.87,39.4]
[1756438773314,4.61065478,216.89,216.87,39.4]
[1756438773526,0.86216157,216.88,216.87,39.4]
[1756438773709,7.38712767,216.88,216.82,6.66712767]
[1756438774021,0.14216157,216.87,216.83,39.28]
[1756438774328,0.72,216.86,216.83,39.28]
[1756438774617,4.61065478,216.89,216.83,39.28]
[1756438774820,11.99736004,216.91,216.85,6.66712767]
[1756438775026,11.99736004,216.91,216.86,39.24]
[1756438775317,0.72,216.9,216.86,39.24]
[1756438776019,11.27736004,216.91,216.86,39.24]
[1756438776191,0.72,216.89,216.86,39.24]
[1756438776395,7.38712767,216.88,216.83,78.94]
[1756438776599,0.14216157,216.86,216.84,39.22]
[1756438776798,5.33148259,216.85,216.84,39.22]
[1756438777108,0.14216157,216.84,216.79,0.03]
[1756438777421,0.72,216.83,216.8,45.82712767]
[1756438778403,0.14216157,216.84,216.8,45.82712767]
[1756438778730,0.14216157,216.84,216.81,6.66712767]
[1756438778902,5.47389202,216.84,216.82,39.12]
[1756438779523,4.75389202,216.84,216.82,39.12]
[1756438779723,5.47389202,216.84,216.82,39.12]
[1756438780042,4.75389202,216.84,216.82,39.12]
[1756438780561,4.75368064,216.85,216.82,39.12]
[1756438780719,5.47368064,216.85,216.82,39.12]
[1756438782015,0.72,216.91,216.84,4.21784609]
[1756438782219,8.82784055,216.92,216.86,4.21784609]
[1756438782417,0.06,216.93,216.88,4.21784609]
[1756438782616,0.06,216.93,216.88,4.88784609]
[1756438782822,0.06,216.93,216.89,43.19784609]
[1756438783022,0.20216157,216.93,216.89,38.98]
[1756438783225,0.20216157,216.93,216.89,43.19784609]
[1756438783226,0.06,216.93,216.89,43.19784609]
[1756438784137,0.06,216.93,216.89,38.98]
[1756438784441,0.06,216.93,216.89,43.19784609]
[1756438784634,0.06,216.93,216.89,38.98]
[1756438785438,0.06,216.93,216.89,39.65]
[1756438785638,0.06,216.93,216.89,47.65]
[1756438785836,0.06,216.93,216.89,46.98]
[1756438786147,4.66978195,216.93,216.89,53.62150227]
[1756438786650,0.06,216.93,216.89,53.62150227]
[1756438787344,0.06,216.93,216.89,51.59059057]
[1756438787521,0.78,216.93,216.89,53.62150227]
[1756438788225,0.06,216.93,216.9,6.64150227]
[1756438788432,0.06,216.93,216.9,7.31150227]
[1756438788918,0.06,216.93,216.92,6.64150227]
[1756438789124,0.06,216.93,216.92,124.72582541]
[1756438789446,0.06,216.93,216.92,125.39582541]
[1756438790244,0.06,216.93,216.92,130.00581987]
[1756438790619,0.06,216.93,216.92,125.39582541]
[1756438791243,0.06,216.93,216.92,123.3643176]
[1756438791451,0.06,216.93,216.92,133.39582541]
[1756438792127,0.06,216.93,216.92,138.00581987]
[1756438793440,0.06,216.93,216.92,87.22432314]
[1756438793640,0.06,216.93,216.92,132.62582541]
[1756438794835,0.06,216.93,216.92,93.86582541]
[1756438795035,0.06,216.93,216.92,132.60582541]
[1756438795654,0.06,216.93,216.92,53.66582541]
[1756438796364,0.06,216.93,216.92,14.92582541]
[1756438796548,0.06,216.93,216.92,53.64582541]
[1756438797062,0.06,216.93,216.92,47.00432314]
[1756438797266,0.06,216.93,216.92,53.64582541]
[1756438798649,0.06,216.93,216.92,58.25581987]
[1756438798848,0.06,216.93,216.92,53.64582541]
[1756438800454,0.06,216.93,216.92,125.5]
[1756438801365,0.06,216.93,216.92,132.14150227]
[1756438801560,0.06,216.93,216.92,132.42582541]
[1756438801863,0.06,216.93,216.92,137.75581987]
[1756438802861,0.06,216.93,216.92,125.74432314]
[1756438803060,0.06,216.93,216.92,132.38582541]
[1756438803562,0.06,216.93,216.92,132.06150227]
[1756438803763,0.06,216.93,216.92,125.42]
[1756438803966,0.06,216.93,216.92,132.06150227]
[1756438804464,0.06,216.93,216.92,132.78150227]
[1756438804765,0.06,216.93,216.92,133.06582541]
[1756438805163,0.06,216.93,216.92,137.67581987]
[1756438807449,0.06,216.93,216.92,135.24709349]
[1756438808460,0.06,216.93,216.92,139.45986938]
[1756438808664,0.06,216.93,216.92,148.99118838]
[1756438808851,0.06,216.93,216.92,144.77841249]
[1756438809057,0.06,216.93,216.92,144.05841249]
[1756438809343,0.06,216.93,216.92,144.77841249]
[1756438810170,0.06,216.93,216.92,139.8456366]
[1756438810358,0.06,216.93,216.92,134.52709349]
[1756438810560,0.06,216.93,216.92,130.31284614]
[1756438810759,0.06,216.93,216.92,96.04562203]
[1756438810969,0.06,216.93,216.92,134.34562203]
[1756438811169,0.06,216.93,216.92,130.13284614]
[1756438811484,0.06,216.93,216.92,135.06709349]
[1756438812786,0.06,216.93,216.92,130.8543176]
[1756438813072,0.06,216.93,216.92,135.06709349]
[1756438813864,0.06,216.93,216.92,134.34709349]
[1756438814579,0.06,216.93,216.92,135.06709349]
[1756438814976,0.06,216.93,216.92,139.67576349]
[1756438815275,0.06,216.93,216.92,138.95576349]
[1756438819184,0.06,216.93,216.92,134.34576903]
[1756438819758,0.77,216.93,216.92,86.94]
[1756438820062,0.06,216.93,216.92,129.25277589]
[1756438820265,0.77,216.93,216.92,125.04]
[1756438820580,0.77,216.93,216.92,129.25277589]
[1756438820957,0.77,216.93,216.92,91.15277589]
[1756438821158,0.06,216.93,216.92,129.23277589]
[1756438821366,0.06,216.93,216.92,129.51709903]
[1756438821567,0.06,216.93,216.92,141.03766303]
[1756438822379,0.06,216.93,216.92,134.12709349]
[1756438822578,0.06,216.93,216.92,126.84709349]
[1756438822778,0.06,216.93,216.92,131.05986949]
[1756438824062,0.06,216.93,216.92,88.36987503]
[1756438824254,0.06,216.93,216.92,125.66987503]
[1756438824460,0.77,216.93,216.92,83.152776]
[1756438824676,0.77,216.93,216.92,121.17277589]
[1756438825071,0.77,216.93,216.9,4.21277589]
[1756438825290,0.71,216.92,216.91,37.96]
[1756438825662,0.71,216.92,216.91,45.96]
[1756438826960,5.32005735,216.92,216.91,37.92]
[1756438827270,0.71,216.92,216.91,37.92]
[1756438828597,5.31999446,216.92,216.91,37.92]
[1756438829166,0.71,216.92,216.91,37.92]
[1756438829964,0.71,216.92,216.91,45.92]
[1756438830980,5.31999446,216.92,216.91,45.92]
[1756438831763,9.53277035,216.92,216.82,0.03]
[1756438831969,9.53277035,216.92,216.84,4.21277589]
[1756438831970,4.21277589,216.89,216.84,4.21277589]
[1756438832166,4.6108447,216.88,216.85,37.82]
[1756438832367,0.7,216.87,216.85,42.03277589]
[1756438832585,0.7,216.86,216.85,42.03277589]
[1756438832972,0.7,216.88,216.85,42.03277589]
[1756438833304,0.7,216.87,216.85,42.03277589]
[1756438834792,0.7,216.87,216.85,45.82]
[1756438834991,0.7,216.87,216.85,50.03277589]
[1756438837095,0.7,216.87,216.85,128.97277589]
[1756438837485,4.91277589,216.9,216.85,50.03277589]
[1756438837692,0.84216157,216.89,216.85,50.03277589]
[1756438837892,0.7,216.88,216.85,45.82]
[1756438838092,0.7,216.87,216.85,50.03277589]
[1756438839694,0.7,216.87,216.85,12.21277589]